fUSD/lending_fUSD_20240722
["ID","MTS","AMOUNT","RATE_DAILY","PERIOD"]
[332906266,1721672161958,281.28,0.00024,60]
[332906267,1721672180564,281.27,0.00025,120]
[332906268,1721672507985,533.26,8.849e-05,2]
[332906269,1721672561967,10000.0,8.849e-05,2]
[332906270,1721672561989,8344.00516028,8.849e-05,2]
[332906271,1721672589990,74204.31113188,8.849e-05,2]
[332906272,1721672755183,10000.0,6.94e-05,2]
[332906273,1721672755206,2862.14411947,6.94e-05,2]
[332906274,1721672825507,10000.0,8.849e-05,2]
[332906275,1721672825533,10000.0,8.849e-05,2]
[332906324,1721672862774,7594.57255704,6.94e-05,2]
[332906325,1721672872467,2405.42744296,8.412e-05,2]
[332906326,1721672872489,7594.57255704,8.412e-05,2]
[332906329,1721672881110,176.83016653,8.412e-05,2]
[332906330,1721672907362,155.0,8.412e-05,2]
[332906333,1721672928268,155.0,8.412e-05,2]
[332906334,1721672932459,10000.0,8.412e-05,2]
[332906342,1721672953617,-252.72893978,0.00010138,2]
[332906343,1721672953637,-265.647482,0.00010187,2]
[332906344,1721672953660,-150.0,0.00010238,2]
[332906345,1721672953681,-25831.62357822,0.00010239,2]
[332906346,1721672957296,-20000.0,0.00010239,2]
[332906347,1721672957564,-20000.0,0.00010239,2]
[332906348,1721672958239,-20000.0,0.00010239,2]
[332906350,1721672958436,-20000.0,0.00010239,2]
[332906351,1721672960355,-20000.0,0.00010239,2]
[332906352,1721672961533,-1404.11080109,0.00010196,2]
[332906353,1721672961556,-18595.88919891,0.00010239,2]
[332906355,1721672963907,-20000.0,0.00010239,2]
[332906357,1721672966503,-3929.44209887,0.00010239,2]
[332906358,1721672966524,-160.39430934,0.00010339,2]
[332906359,1721672966545,-250.0,0.00010575,2]
[332906360,1721672966565,-200.0,0.00010619,2]
[332906361,1721672966587,-500.0,0.00010664,2]
[332906362,1721672966607,-150.00000001,0.00010677,2]
[332906363,1721672966629,-14810.16359178,0.00010712,2]
[332906368,1721672988170,-302.49420379,0.00010196,2]
[332906369,1721672988193,-179.70031025,0.00010196,2]
[332906370,1721672988215,-9089.83640822,0.00010712,2]
[332906371,1721672988241,-117.96907774,0.00010847,2]
[332906401,1721673031929,-300.0,0.00010846,2]
[332906402,1721673031938,-37.03092226,0.00010847,2]
[332906403,1721673031947,-155.0,0.00010847,2]
[332906404,1721673031957,-164.2360222,0.00010847,2]
[332906405,1721673031968,-166.91201057,0.00010847,2]
[332906406,1721673031978,-1632.38014955,0.00010847,2]
[332906407,1721673031987,-155.32721783,0.00010847,2]
[332906408,1721673031998,-155.0,0.00010847,2]
[332906409,1721673032008,-539.18566561,0.00010847,2]
[332906410,1721673032018,-1844.95796463,0.00010847,2]
[332906411,1721673032027,-298.26312183,0.00010847,2]
[332906412,1721673032037,-155.0,0.00010847,2]
[332906413,1721673032047,-7958.43908552,0.00010847,2]
[332906414,1721673032094,-12.95805923,0.00010847,2]
[332906415,1721673032104,-204.6670778,0.00010847,2]
[332906416,1721673032114,-358.66047374,0.00010847,2]
[332906417,1721673032124,-499.99,0.00010847,2]
[332906418,1721673032134,-1000.0,0.00010869,2]
[332906419,1721673032144,-150.0,0.00011068,2]
[332906420,1721673032154,-158.07088294,0.00011105,2]
[332906421,1721673032164,-329.5470295,0.00011105,2]
[332906422,1721673032174,-155.0,0.00011105,2]
[332906423,1721673032183,-202.63817161,0.00011105,2]
[332906424,1721673032193,-363.71380104,0.00011105,2]
[332906425,1721673032202,-218.62689075,0.00011105,2]
[332906426,1721673032212,-158.79626674,0.00011105,2]
[332906427,1721673032223,-198.33105774,0.00011105,2]
[332906428,1721673032232,-160.79336868,0.00011105,2]
[332906429,1721673032241,-533.26,0.00011113,2]
[332906430,1721673032251,-484.56827813,0.00011161,2]
[332906431,1721673032260,-22630.61502022,0.00011186,2]
[332906432,1721673032269,-371.51160251,0.00011186,2]
[332906433,1721673032279,-371.51160251,0.00011206,2]
[332906434,1721673032288,-519.51657514,0.00011384,2]
[332906435,1721673032298,-179.552245,0.00011498,2]
[332906436,1721673032307,-2270.833613,0.00011498,2]
[332906437,1721673032316,-2270.833613,0.00011642,2]
[332906438,1721673032327,-1032.20777337,0.00011652,2]
[332906439,1721673032341,-3000.0,0.0001177,2]
[332906440,1721673032350,-2270.833613,0.00011786,2]
[332906441,1721673032360,-1407.7993,0.0001179,2]
[332906442,1721673032369,-462.2894277,0.0001179,2]
[332906443,1721673032383,-7037.7105723,0.0001179,2]
[332906444,1721673032392,-829.38072415,0.0001179,2]
[332906445,1721673032402,-177.13138484,0.00011796,2]
[332906446,1721673032412,-1000.0,0.000118,2]
[332906447,1721673032421,-2375.0,0.00011849,2]
[332906448,1721673032431,-540.842,0.00011849,2]
[332906449,1721673032440,-321.041,0.00011849,2]
[332906450,1721673032449,-1663.0,0.00011849,2]
[332906451,1721673032458,-1829.0,0.00011849,2]
[332906452,1721673032467,-460.73330782,0.0001188,2]
[332906453,1721673032477,-460.73330782,0.0001188,2]
[332906454,1721673032486,-21542.67987057,0.00011887,2]
[332906455,1721673032496,-29413.31383251,0.0001189,2]
[332906465,1721673037764,-428.88041743,0.0001189,2]
[332906466,1721673037776,-17002.9912,0.0001189,2]
[332906467,1721673037787,-8678.30116329,0.0001189,2]
[332906479,1721673039651,-37950.44644478,0.0001189,2]
[332906480,1721673039665,-8184.87802227,0.0001189,2]
[332906481,1721673039677,-19258.45448065,0.0001189,2]
[332906482,1721673039768,-39212.85223734,0.0001189,2]
[332906483,1721673039845,-932.57048151,0.0001189,2]
[332906484,1721673039856,-747.93905269,0.0001189,2]
[332906485,1721673039867,-2196.30071553,0.0001189,2]
[332906486,1721673039878,-10822.95724,0.0001189,2]
[332906743,1721673042667,-733.74299321,0.0001189,2]
[332906745,1721673042679,-697.39124285,0.0001189,2]
[332906749,1721673042708,-1625.7938459,0.0001189,2]
[332906751,1721673042720,-24935.22661887,0.0001189,2]
[332906763,1721673042824,-494.33920324,0.0001189,2]
[332906804,1721673046392,-1873.50967982,0.0001189,2]
[332906892,1721673629905,505.75,8.977e-05,2]
[332906894,1721673791254,-161.07639516,0.00012,30]
[332906964,1721674204918,480.46,8.812e-05,2]
[332906976,1721674231728,-385.0,9.095e-05,2]
[332906977,1721674231738,-197.92504737,0.00010612,2]
[332906978,1721674231751,-2323.0117673,0.00010612,2]
[332906979,1721674231853,-551.29288503,0.00010612,2]
[332906980,1721674231865,-2852.80510775,0.00010612,2]
[332906981,1721674231878,-368.25779255,0.00010612,2]
[332906982,1721674231888,-904.0,0.00010757,2]
[332906983,1721674231898,-604.53491727,0.00010793,2]
[332906984,1721674232257,-395.46508273,0.00010793,2]
[332906985,1721674232267,-292.37,0.00010872,2]
[332906986,1721674232276,-525.50769677,0.00010881,2]
[332906987,1721674232286,-300.0,0.00010903,2]
[332906988,1721674232295,-4797.62512821,0.00010904,2]
[332906989,1721674233430,-788.82487179,0.00010904,2]
[332906990,1721674233440,-480.46,0.00011076,2]
[332906991,1721674233449,-2076.37517597,0.00011105,2]
[332906992,1721674233459,-155.0,0.00011105,2]
[332906993,1721674233469,-1180.89115233,0.00011105,2]
[332906994,1721674233480,-1025.40564148,0.00011105,2]
[332906995,1721674233490,-180.08051852,0.00011105,2]
[332907002,1721674237842,-1195.436394,0.00011105,2]
[332907003,1721674237852,-28088.56246171,0.00011186,2]
[332907004,1721674237862,-22630.61502022,0.00011186,2]
[332907005,1721674237871,-4733.28565966,0.00011186,2]
[332907006,1721674237880,-1632.38014955,0.00011186,2]
[332907007,1721674237890,-3692.89050269,0.00011206,2]
[332907008,1721674237899,-499.99,0.00011241,2]
[332907009,1721674237909,-652.74964097,0.00011384,2]
[332907010,1721674237918,-1013.603382,0.00011498,2]
[332907011,1721674237928,-155.5988411,0.00011525,2]
[332907012,1721674237938,-1013.603382,0.00011642,2]
[332907013,1721674237947,-1013.603382,0.00011786,2]
[332907014,1721674237957,-176.85218512,0.0001179,2]
[332907015,1721674237966,-5056.8740364,0.0001179,2]
[332907016,1721674237975,-5056.87403638,0.00011791,2]
[332907017,1721674237985,-5056.87403638,0.00011793,2]
[332907018,1721674237994,-5056.87403638,0.00011794,2]
[332907019,1721674238003,-5056.87403638,0.00011796,2]
[332907020,1721674238014,-5056.87403638,0.00011797,2]
[332907021,1721674238023,-5056.87403638,0.00011799,2]
[332907022,1721674238033,-176.85218512,0.000118,2]
[332907023,1721674238042,-5056.87403638,0.000118,2]
[332907024,1721674238051,-288.499,0.00011848,2]
[332907025,1721674238061,-755.188,0.00011848,2]
[332907026,1721674238070,-150.0,0.00011848,2]
[332907027,1721674238079,-150.0,0.00011848,2]
[332907028,1721674238089,-12598.58428337,0.0001185,2]
[332907029,1721674238099,-153.57776927,0.0001188,2]
[332907030,1721674238108,-153.57776927,0.0001188,2]
[332907031,1721674238117,-1000.0,0.0001188,2]
[332907032,1721674238127,-1000.0,0.0001188,2]
[332907033,1721674238136,-1000.0,0.0001188,2]
[332907034,1721674238146,-1000.0,0.0001188,2]
[332907035,1721674238155,-1000.0,0.0001188,2]
[332907036,1721674238165,-1000.0,0.0001188,2]
[332907037,1721674238174,-1765927.51119792,0.0001189,2]
[332907038,1721674238224,-1908.71029907,0.0001189,2]
[332907039,1721674238236,-345.0,0.0001189,2]
[332907208,1721674240478,-150.0,0.00011848,2]
[332907210,1721674240488,-849.80525177,0.0001189,2]
[332907213,1721674240500,-1299.39341658,0.0001189,2]
[332907559,1721674244007,-1587.54048323,0.0001189,2]
[332907824,1721674246625,-349.14572823,0.0001185,2]
[332907826,1721674246635,-104547.52466734,0.0001189,2]
[332907828,1721674246644,-3000.0,0.0001189,2]
[332907830,1721674246654,-153.57776927,0.0001189,2]
[332907831,1721674246663,-151.0,0.00011892,2]
[332907833,1721674246673,-151.0,0.00011892,2]
[332907835,1721674246683,-225.46995741,0.00011899,2]
[332907837,1721674246692,-451761.82355204,0.000119,2]
[332907958,1721674248163,-366.407,0.000119,2]
[332908042,1721674774768,472.04,8.919e-05,2]
[332908043,1721674839856,155.0,8.919e-05,2]
[332908044,1721674857439,305.0,8.919e-05,2]
[332908045,1721674866403,2532.35275657,8.919e-05,2]
[332908046,1721675079562,234.9006066,8.919e-05,2]
[332908047,1721675176547,156.6004044,8.919e-05,2]
[332908395,1721675269559,155.0,8.919e-05,2]
[332908398,1721675351988,448.43,8.836e-05,2]
[332908401,1721675362560,155.0,8.919e-05,2]
[332908417,1721675433270,-300.0,0.00010259,2]
[332908418,1721675433281,-418.42740746,0.0001026,2]
[332908419,1721675433294,-2581.57259254,0.0001026,2]
[332908420,1721675433305,-2800.0,0.0001026,2]
[332908421,1721675433316,-500.0,0.0001026,2]
[332908422,1721675433326,-500.0,0.0001026,2]
[332908423,1721675433337,-158.07764017,0.00010811,2]
[332908424,1721675433347,-958.16486127,0.00010811,2]
[332908425,1721675433357,-155.0,0.00010811,2]
[332908426,1721675433367,-626.98137185,0.00010811,2]
[332908427,1721675433377,-471.19738644,0.00010811,2]
[332908428,1721675433387,-1390.36412839,0.00010811,2]
[332908429,1721675433397,-530.01565204,0.00010811,2]
[332908430,1721675433407,-155.0,0.00010811,2]
[332908431,1721675433417,-250.00465538,0.00010811,2]
[332908432,1721675433427,-3112.40418631,0.00010811,2]
[332908433,1721675433436,-800.0,0.00010862,2]
[332908434,1721675433446,-200.0,0.00010935,2]
[332908435,1721675433456,-3000.0,0.00011082,2]
[332908436,1721675433468,-2800.0,0.00011082,2]
[332908437,1721675433478,-448.43,0.000111,2]
[332908438,1721675433488,-298.26312183,0.00011105,2]
[332908439,1721675433499,-439.52750479,0.00011105,2]
[332908440,1721675433509,-519.51657514,0.00011105,2]
[332908441,1721675433519,-245.70459071,0.00011105,2]
[332908442,1721675433528,-311.83101963,0.00011105,2]
[332908443,1721675433538,-179.98671452,0.00011105,2]
[332908444,1721675433548,-371.51160251,0.00011105,2]
[332908445,1721675433557,-155.0,0.00011105,2]
[332908446,1721675433567,-276.95671322,0.00011105,2]
[332908447,1721675433578,-1446.10862011,0.00011105,2]
[332908448,1721675433587,-329.5470295,0.00011105,2]
[332908449,1721675433597,-155.0,0.00011105,2]
[332908450,1721675433607,-363.71380104,0.00011105,2]
[332908451,1721675433616,-642.86407266,0.00011105,2]
[332908452,1721675433626,-425.43694771,0.00011186,2]
[332908453,1721675433636,-1273.92324229,0.00011186,2]
[332908454,1721675433645,-155.0,0.00011206,2]
[332908455,1721675433655,-420.0,0.00011282,2]
[332908456,1721675433665,-9844.9406,0.00011425,2]
[332908457,1721675433675,-1020.44168088,0.000115,2]
[332908458,1721675433685,-425.44,0.000116,2]
[332908459,1721675433694,-1121.41113087,0.00011662,2]
[332908460,1721675433706,-447.8963,0.0001169,2]
[332908461,1721675433718,-12133.0553,0.0001179,2]
[332908462,1721675433728,-1345.4023,0.0001179,2]
[332908463,1721675433738,-3355.55,0.00011799,2]
[332908464,1721675433747,-1559.971896,0.000118,2]
[332908465,1721675433757,-321.44547856,0.000118,2]
[332908466,1721675433766,-1000.0,0.000118,2]
[332908467,1721675433776,-317.79480607,0.000118,2]
[332908468,1721675433786,-157.513851,0.000118,2]
[332908469,1721675433795,-293.64006704,0.000118,2]
[332908470,1721675433805,-1613.0632235,0.000118,2]
[332908471,1721675433814,-253.432325,0.000118,2]
[332908472,1721675433825,-500.0,0.0001184,2]
[332908473,1721675433835,-500.0,0.0001184,2]
[332908474,1721675433845,-500.0,0.0001184,2]
[332908475,1721675433855,-500.0,0.0001184,2]
[332908476,1721675433865,-500.0,0.0001184,2]
[332908477,1721675433875,-500.0,0.0001184,2]
[332908478,1721675433885,-500.0,0.0001184,2]
[332908479,1721675433895,-500.0,0.0001184,2]
[332908480,1721675433904,-623.2736,0.0001184,2]
[332908481,1721675433914,-150.0,0.00011849,2]
[332908482,1721675433924,-150.0,0.00011849,2]
[332908483,1721675433933,-160.0,0.0001185,2]
[332908484,1721675433943,-1272.22463234,0.00011899,2]
[332908485,1721675433954,-79278.68454867,0.00011899,2]
[332908486,1721675433969,-58771.25034392,0.00011899,2]
[332908487,1721675433981,-676921.12126793,0.00011899,2]
[332908488,1721675433991,-2252.0,0.00011899,2]
[332908489,1721675434001,-591226.81525934,0.000119,2]
[332908490,1721675434110,-1004.42892586,0.000119,2]
[332908494,1721675437961,-1273.92324229,0.00011186,2]
[332908495,1721675437971,-152.38998429,0.00011896,2]
[332908496,1721675437981,-2.74700328,0.00011897,2]
[332908632,1721675440140,-1216.37287104,0.00011897,2]
[332908634,1721675440153,-14750.49715305,0.000119,2]
[332908636,1721675440171,-575.41506025,0.000119,2]
[332908638,1721675440183,-307.16120229,0.000119,2]
[332908665,1721675440437,-2902.56589036,0.000119,2]
[332908920,1721675443060,-155.0,0.00011186,2]
[332908922,1721675443071,-1124.97005618,0.000119,2]
[332908924,1721675443083,-3939.92439593,0.000119,2]
[332908927,1721675443094,-448.95942964,0.000119,2]
[332908950,1721675443284,-1238.2138644,0.000119,2]
[332908952,1721675443296,-38937.73636721,0.000119,2]
[332908956,1721675443328,-4616.80177371,0.000119,2]
[332908959,1721675443340,-833.87987711,0.000119,2]
[332908964,1721675443383,-23371.28885112,0.000119,2]
[332908967,1721675443402,-374.72962927,0.000119,2]
[332908969,1721675443413,-701.33067573,0.000119,2]
[332909379,1721675447668,-169253.75089647,0.000119,2]
[332910398,1721675681419,1031.01418954,0.00025,120]
[332910399,1721675783694,500.75942648,0.00024,60]
[332910400,1721675847893,-1454.0,0.00010159,2]
[332910401,1721675874026,422.0,8.716e-05,2]
[332910402,1721675897480,-1451.1429,0.00010159,2]
[332910403,1721675897513,-300.0,0.00010259,2]
[332910404,1721675897544,-500.0,0.0001026,2]
[332910405,1721675897566,-500.0,0.0001026,2]
[332910406,1721675897576,-951.1429,0.0001026,2]
[332910407,1721675897596,-300.0,0.0001026,2]
[332910408,1721675897628,-500.0,0.0001026,2]
[332910409,1721675897652,-42.7142,0.0001026,2]
[332910410,1721675919750,-657.8571,0.0001026,2]
[332910411,1721675919778,-48.2858,0.0001026,2]
[332910412,1721675919788,-657.8571,0.0001026,2]
[332910413,1721675920975,2405.42744296,8.716e-05,2]
[332910414,1721675926395,155.0,8.716e-05,2]
[332910423,1721676018736,293.502359,8.716e-05,2]
[332910432,1721676164039,1123.53643047,8.716e-05,2]
[332910433,1721676164060,5721.52112025,8.716e-05,2]
[332910434,1721676198206,-453.99349827,0.0001016,2]
[332910435,1721676198238,-373.87010346,0.0001026,2]
[332910438,1721676319961,3150.0,9e-05,2]
[332910443,1721676355651,150.0,6.94e-05,2]
[332910444,1721676356535,436.63259212,9e-05,2]
[332910445,1721676371083,155.17260083,9e-05,2]
[332910446,1721676381538,386.6736868,9e-05,2]
[332910447,1721676381561,982.55798118,9e-05,2]
[332910449,1721676403833,400.9,8.614e-05,2]
[332910487,1721676552008,690.63698543,8.614e-05,2]
[332910488,1721676552941,155.0,8.614e-05,2]
[332910493,1721676561040,155.0,8.614e-05,2]
[332910498,1721676586668,158.80623493,8.614e-05,2]
[332910507,1721676632241,-2016.29,0.0001,2]
[332910508,1721676632250,-300.0,0.00010259,2]
[332910509,1721676632260,-1268.27279654,0.0001026,2]
[332910510,1721676632270,-500.0,0.0001026,2]
[332910511,1721676632280,-2300.0,0.0001026,2]
[332910512,1721676632289,-412.45599061,0.0001026,2]
[332910513,1721676632299,-300.26542006,0.0001026,2]
[332910514,1721676632309,-1049.01515788,0.0001026,2]
[332910515,1721676632319,-234.74593988,0.0001026,2]
[332910516,1721676632328,-413.0,0.0001039,2]
[332910517,1721676632338,-250.0,0.00010422,2]
[332910518,1721676632347,-640.0,0.00010458,2]
[332910519,1721676632357,-186.86,0.00010493,2]
[332910520,1721676632366,-413.0,0.0001053,2]
[332910521,1721676632376,-207.77924606,0.00010535,2]
[332910522,1721676632441,-576.97070495,0.00010535,2]
[332910523,1721676632460,-2083.57004899,0.00010535,2]
[332910524,1721676632469,-413.0,0.0001067,2]
[332910525,1721676632479,-499.99,0.0001067,2]
[332910526,1721676632490,-360.0,0.00010697,2]
[332910527,1721676632501,-3589.23984859,0.00010745,2]
[332910543,1721676638227,-2319.76015141,0.00010745,2]
[332910544,1721676638237,-413.0,0.000108,2]
[332910545,1721676638247,-400.9,0.00010878,2]
[332910546,1721676638257,-413.0,0.0001094,2]
[332910547,1721676638266,-250.0,0.00010959,2]
[332910548,1721676638276,-427.9,0.00010959,2]
[332910549,1721676638285,-356.59,0.00010959,2]
[332910550,1721676638295,-293.11355433,0.00010959,2]
[332910551,1721676638306,-4.03644567,0.00010959,2]
[332910552,1721676638315,-247.63,0.00010959,2]
[332910553,1721676638325,-206.36,0.00010959,2]
[332910554,1721676638333,-171.96,0.00010959,2]
[332910555,1721676638342,-859.85,0.00010959,2]
[332910556,1721676638351,-839.62,0.00011041,2]
[332910557,1721676638360,-165.04,0.00011078,2]
[332910558,1721676638369,-413.0,0.0001108,2]
[332910559,1721676638379,-150.0,0.00011081,2]
[332910560,1721676638389,-1029.63650996,0.00011082,2]
[332910561,1721676638400,-402.4573045,0.00011082,2]
[332910562,1721676638568,-867.90618554,0.00011082,2]
[332910563,1721676638579,-1132.09381446,0.00011082,2]
[332910564,1721676638633,-359.78990223,0.00011082,2]
[332910771,1721676641119,-808.11628331,0.00011082,2]
[332910773,1721676641128,-155.0,0.00011105,2]
[332910775,1721676641139,-150.0,0.00011178,2]
[332910777,1721676641148,-110.81604419,0.00011178,2]
[332910992,1721676643342,-39.18395581,0.00011178,2]
[332910994,1721676643352,-301.66,0.00011178,2]
[332910996,1721676643361,-165.28,0.00011178,2]
[332910998,1721676643370,-341.09,0.00011178,2]
[332911000,1721676643380,-150.0,0.00011178,2]
[332911002,1721676643389,-150.0,0.00011178,2]
[332911004,1721676643398,-150.0,0.00011178,2]
[332911006,1721676643408,-165.28,0.00011178,2]
[332911008,1721676643417,-150.0,0.00011178,2]
[332911010,1721676643426,-150.0,0.00011178,2]
[332911012,1721676643436,-155.0,0.00011206,2]
[332911014,1721676643446,-2383.29549388,0.00011206,2]
[332911016,1721676643458,-413.0,0.0001122,2]
[332911018,1721676643467,-2070.0,0.0001126,2]
[332911020,1721676643477,-420.0,0.00011282,2]
[332911022,1721676643486,-35.04548375,0.00011341,2]
[332911024,1721676643498,-678.01,0.00011341,2]
[332911043,1721676643678,-49.57451625,0.00011341,2]
[332911045,1721676643688,-413.0,0.0001135,2]
[332911047,1721676643698,-245.60548375,0.00011478,2]
[332911299,1721676646358,-54.39451625,0.00011478,2]
[332911301,1721676646368,-165.22,0.00011478,2]
[332911303,1721676646378,-711.24,0.00011478,2]
[332911305,1721676646387,-394.33927535,0.00011478,2]
[332911486,1721676648214,-135.50072465,0.00011478,2]
[332911488,1721676648224,-529.84,0.00011478,2]
[332911490,1721676648235,-413.0,0.0001149,2]
[332911492,1721676648245,-398.108673,0.00011498,2]
[332911494,1721676648255,-225.55014864,0.00011498,2]
[332913801,1721676745374,-3000.0,0.00013,30]
[332913802,1721676914508,200.62,0.000178,120]
[332913803,1721677000699,379.22,8.878e-05,2]
[332913822,1721677579890,360.25,8.816e-05,2]
[332913900,1721677797738,192.41907189,8.816e-05,2]
[332913915,1721677832238,-300.0,0.00010159,2]
[332913916,1721677832247,-6522.5,0.0001016,2]
[332913917,1721677832258,-2253.76645182,0.0001016,2]
[332913918,1721677832269,-298.3,0.0001016,2]
[332913919,1721677832281,-1240.82800754,0.0001016,2]
[332913920,1721677832292,-1061.28174064,0.0001016,2]
[332913921,1721677832302,-300.0,0.0001016,2]
[332913922,1721677832311,-1900.0,0.0001026,2]
[332913923,1721677832320,-145.61825936,0.0001026,2]
[332913924,1721677832331,-1754.38174064,0.0001026,2]
[332913925,1721677832340,-111.31075231,0.0001026,2]
[332913926,1721677832393,-388.68924769,0.0001026,2]
[332913927,1721677832402,-268.23408578,0.00010686,2]
[332913928,1721677832412,-521.74362309,0.00010686,2]
[332913929,1721677832424,-371.07992026,0.00010686,2]
[332913930,1721677832435,-2745.7059397,0.00010686,2]
[332913931,1721677832444,-413.15225207,0.00010686,2]
[332913932,1721677832454,-155.0,0.00010686,2]
[332913933,1721677832463,-155.92115813,0.00010686,2]
[332913934,1721677832473,-155.0,0.00010686,2]
[332913935,1721677832482,-203.11980475,0.00010686,2]
[332913936,1721677832492,-198.26475295,0.00010686,2]
[332913937,1721677832501,-164.2360222,0.00010686,2]
[332913938,1721677832511,-7958.43908552,0.00010686,2]
[332913939,1721677832520,-155.32721783,0.00010686,2]
[332913940,1721677832530,-155.0,0.00010686,2]
[332913941,1721677832539,-3678.48,0.00010733,2]
[332913942,1721677832548,-534.93394803,0.00010761,2]
[332913943,1721677832558,-846.23137608,0.00010761,2]
[332913944,1721677832568,-525.50769677,0.00010761,2]
[332913945,1721677832577,-402.51774828,0.00010761,2]
[332913946,1721677832587,-305.10188829,0.00010761,2]
[332913947,1721677832597,-1000.0,0.00010772,2]
[332913948,1721677832606,-200.11792725,0.00010955,2]
[332913949,1721677832616,-310.66261492,0.00010972,2]
[332913950,1721677832625,-141.99861781,0.0001108,2]
[332913951,1721677832637,-218.25138219,0.0001108,2]
[332913952,1721677832647,-1900.0,0.00011082,2]
[332913953,1721677832656,-1900.0,0.00011082,2]
[332913954,1721677832669,-150.0,0.00011104,2]
[332913955,1721677832678,-1632.38014955,0.00011105,2]
[332913956,1721677832688,-218.62689075,0.00011105,2]
[332913957,1721677832698,-2206.29679381,0.00011105,2]
[332913958,1721677832708,-155.0,0.00011105,2]
[332913959,1721677832720,-158.07088294,0.00011105,2]
[332913960,1721677832730,-202.63817161,0.00011105,2]
[332913961,1721677832740,-155.0,0.00011105,2]
[332913962,1721677832749,-4454.02138355,0.00011105,2]
[332913963,1721677832809,-1112.73839352,0.00011105,2]
[332913964,1721677832822,-561.51132701,0.00011105,2]
[332913965,1721677832834,-341.48088377,0.00011105,2]
[332913966,1721677832845,-1104.46932817,0.00011105,2]
[332913968,1721677832865,-6558.09753364,0.00011105,2]
[332913969,1721677832877,-327.85685687,0.00011105,2]
[332913971,1721677832889,-466.74820616,0.00011105,2]
[332913972,1721677832900,-2005.41,0.00011105,2]
[332913973,1721677832912,-2377.36767578,0.00011105,2]
[332913974,1721677832951,-356.05215868,0.00011105,2]
[332913975,1721677832960,-420.0,0.00011173,2]
[332913976,1721677832970,-302.37,0.000112,2]
[332913977,1721677832980,-652.74964097,0.00011322,2]
[332913978,1721677832990,-3000.0,0.0001138,2]
[332913979,1721677833000,-0.38784251,0.00011498,2]
[332913980,1721677833012,-527.08620085,0.00011498,2]
[332913981,1721677833022,-398.108673,0.00011498,2]
[332913982,1721677833032,-1171.305923,0.00011498,2]
[332913983,1721677833041,-865.675,0.00011519,2]
[332913984,1721677833051,-308.71212519,0.00011525,2]
[332913985,1721677833061,-186.71691214,0.00011525,2]
[332913986,1721677833072,-150.0,0.00011534,2]
[332913987,1721677833083,-165.28,0.00011534,2]
[332913988,1721677833094,-413.0,0.0001163,2]
[332913989,1721677833105,-398.108673,0.00011642,2]
[332913990,1721677833116,-49.90884861,0.00011642,2]
[332913991,1721677833129,-555.90330277,0.00011642,2]
[332913992,1721677833143,-147.21204062,0.00011642,2]
[332913993,1721677833154,-213.4679593,0.00011642,2]
[332913994,1721677833171,-184.6407137,0.00011642,2]
[332913995,1721677833183,-688.03834342,0.00011642,2]
[332913996,1721677833197,-483.26757958,0.00011642,2]
[332913997,1721677833207,-803.05484025,0.00011662,2]
[332913998,1721677833226,-269.99653745,0.00011662,2]
[332913999,1721677833236,-347.947,0.00011681,2]
[332914000,1721677833248,-1192.0183,0.000117,2]
[332914001,1721677833258,-413.0,0.0001176,2]
[332914002,1721677833268,-241.043,0.00011765,2]
[332914003,1721677833278,-398.108673,0.00011786,2]
[332914004,1721677833288,-753.024192,0.00011786,2]
[332914005,1721677833298,-398.108673,0.00011786,2]
[332914006,1721677833308,-1171.305923,0.00011786,2]
[332914007,1721677833317,-1629.7164,0.00011796,2]
[332914008,1721677833327,-640.4597,0.00011796,2]
[332914009,1721677833337,-2000.0,0.000118,2]
[332914010,1721677833347,-151.31735173,0.000118,4]
[332914011,1721677833359,-1000.0,0.000118,2]
[332914012,1721677833369,-472.381,0.000118,2]
[332914013,1721677833379,-7500.0,0.000118,2]